fUSD/lending_fUSD_20240404
["ID","MTS","AMOUNT","RATE_DAILY","PERIOD"]
[321437063,1712190668566,-371.42370589,0.00054794,120]
[321437064,1712190668576,-561.19997747,0.00054794,120]
[321437065,1712190668585,-500.0,0.00054794,120]
[321437066,1712190668597,-500.0,0.00054794,120]
[321437067,1712190668607,-500.0,0.00054794,120]
[321437068,1712190668616,-505.56271148,0.00054794,120]
[321437069,1712190668627,-500.0,0.00054794,120]
[321437070,1712190668637,-501.80507619,0.00054794,120]
[321437071,1712190668646,-502.34492419,0.00054794,120]
[321437072,1712190668656,-502.62877049,0.00054794,120]
[321437073,1712190668666,-641.26628074,0.00054794,120]
[321437074,1712190668675,-500.0,0.00054794,120]
[321437075,1712190668685,-500.0,0.00054794,120]
[321437076,1712190668694,-503.91463263,0.00054794,120]
[321437077,1712190668703,-463.67023749,0.00054794,120]
[321437078,1712190668713,-500.0,0.00054794,120]
[321437079,1712190668723,-500.0,0.00054794,120]
[321437080,1712190668732,-501.31135148,0.00054794,120]
[321437081,1712190668742,-503.99730774,0.00054794,120]
[321437082,1712190668752,-508.32905957,0.00054794,120]
[321437083,1712190668762,-500.0,0.00054794,30]
[321437084,1712190668771,-500.0,0.00054794,120]
[321437085,1712190668781,-500.0,0.00054794,120]
[321437086,1712190668791,-517.56558449,0.00054794,120]
[321437087,1712190668800,-500.0,0.00054794,120]
[321437088,1712190668810,-500.0,0.00054794,120]
[321437089,1712190668820,-509.67767544,0.00054794,120]
[321437090,1712190668830,-508.30182175,0.00054794,120]
[321437091,1712190668841,-500.0,0.00054794,120]
[321437092,1712190668850,-1027.84,0.00054794,120]
[321437093,1712190668860,-539.18,0.00054794,120]
[321437094,1712190668870,-500.0,0.00054794,120]
[321437095,1712190668880,-513.28,0.00054794,120]
[321437096,1712190668890,-705.27,0.00054794,120]
[321437097,1712190668902,-500.0,0.00054794,120]
[321437098,1712190668912,-500.0,0.00054794,120]
[321437099,1712190668922,-500.0,0.00054794,120]
[321437100,1712190668931,-500.0,0.00054794,120]
[321437101,1712190668941,-500.0,0.00054794,120]
[321437102,1712190668950,-500.0,0.00054794,120]
[321437103,1712190668960,-500.0,0.00054794,32]
[321437104,1712190668969,-500.0,0.00054794,32]
[321437105,1712190668978,-500.0,0.00054794,32]
[321437106,1712190668988,-505.4501326,0.00054794,120]
[321437107,1712190668997,-500.0,0.00054794,32]
[321437108,1712190669007,-500.0,0.00054794,120]
[321437109,1712190669016,-500.0,0.00054794,32]
[321437110,1712190669027,-500.0,0.00054794,32]
[321437111,1712190669038,-500.0,0.00054794,120]
[321437112,1712190669048,-500.0,0.00054794,44]
[321437113,1712190669058,-544.38445311,0.00054794,120]
[321437114,1712190669069,-508.72387683,0.00054794,120]
[321437115,1712190669082,-500.0,0.00054794,120]
[321437116,1712190669093,-500.0,0.00054794,120]
[321437117,1712190669102,-500.0,0.00054794,120]
[321437118,1712190669112,-500.0,0.00054794,120]
[321437119,1712190669124,-659.49,0.00054794,120]
[321437120,1712190669136,-508.68341614,0.00054794,120]
[321437121,1712190669148,-510.21331703,0.00054794,2]
[321437122,1712190669158,-704.66,0.00054794,120]
[321437123,1712190669167,-500.0,0.00054794,120]
[321437124,1712190669177,-500.0,0.00054794,120]
[321437125,1712190669186,-200.0,0.00054794,10]
[321437126,1712190669195,-500.0,0.00054794,120]
[321437127,1712190669205,-500.0,0.00054794,120]
[321437128,1712190669215,-500.0,0.00054794,120]
[321437129,1712190669225,-675.72,0.00054794,120]
[321437130,1712190669234,-513.83440369,0.00054794,120]
[321437131,1712190669245,-500.0,0.00054794,120]
[321437132,1712190669254,-577.38987168,0.00054794,120]
[321437133,1712190669264,-500.0,0.00054794,120]
[321437134,1712190669273,-504.08964628,0.00054794,120]
[321437135,1712190669283,-500.0,0.00054794,120]
[321437136,1712190669292,-230.41109752,0.00054794,120]
[321437137,1712190669301,-509.30792695,0.00054794,120]
[321437138,1712190669311,-500.0,0.00054794,120]
[321437139,1712190669321,-500.0,0.00054794,120]
[321437140,1712190669330,-500.0,0.00054794,120]
[321437141,1712190669340,-500.0,0.00054794,120]
[321437142,1712190669350,-584.36788201,0.00054794,120]
[321437143,1712190669359,-1000.0,0.00054794,30]
[321437144,1712190669369,-500.0,0.00054794,120]
[321437145,1712190669379,-500.0,0.00054794,120]
[321437146,1712190669389,-500.0,0.00054794,120]
[321437147,1712190669398,-590.49,0.00054794,120]
[321437148,1712190669407,-686.97,0.00054794,120]
[321437149,1712190669417,-181.1628868,0.00054794,120]
[321437150,1712190669426,-500.0,0.00054794,120]
[321437151,1712190669436,-500.0,0.00054794,120]
[321437152,1712190669446,-523.1846886,0.00054794,120]
[321437153,1712190669456,-500.0,0.00054794,120]
[321437154,1712190669466,-500.0,0.00054794,120]
[321437155,1712190669475,-500.0,0.00054794,120]
[321437156,1712190669485,-500.0,0.00054794,120]
[321437157,1712190669495,-295.59102705,0.00054794,120]
[321437158,1712190669505,-504.7156112,0.00054794,120]
[321437159,1712190669515,-513.48225278,0.00054794,120]
[321437160,1712190669526,-500.0,0.00054794,120]
[321437161,1712190669536,-2000.0,0.00054794,30]
[321437162,1712190669546,-500.0,0.00054794,120]
[321437163,1712190669556,-505.92489313,0.00054794,120]
[321437164,1712190669566,-500.0,0.00054794,120]
[321437165,1712190669575,-500.0,0.00054794,120]
[321437166,1712190669586,-518.076014,0.00054794,120]
[321437167,1712190669599,-500.0,0.00054794,120]
[321437168,1712190669609,-526.52666836,0.00054794,120]
[321437169,1712190669620,-515.31810621,0.00054794,120]
[321437170,1712190669629,-500.0,0.00054794,2]
[321437171,1712190669640,-500.0,0.00054794,120]
[321437172,1712190669651,-500.0,0.00054794,120]
[321437173,1712190669660,-509.23777003,0.00054794,120]
[321437174,1712190669670,-500.0,0.00054794,120]
[321437175,1712190669680,-514.68298953,0.00054794,120]
[321437176,1712190669689,-577.32777348,0.00054794,120]
[321437177,1712190669699,-500.0,0.00054794,120]
[321437178,1712190669709,-642.8,0.00054794,120]
[321437179,1712190669718,-516.70237293,0.00054794,120]
[321437180,1712190669728,-634.62,0.00054794,120]
[321437181,1712190669737,-500.0,0.00054794,120]
[321437182,1712190669747,-500.0,0.00054794,120]
[321437183,1712190669756,-500.0,0.00054794,120]
[321437184,1712190669765,-500.0,0.00054794,120]
[321437185,1712190669775,-733.94,0.00054794,120]
[321437186,1712190669785,-500.0,0.00054794,120]
[321437187,1712190669794,-500.0,0.00054794,120]
[321437188,1712190669804,-500.0,0.00054794,120]
[321437189,1712190669814,-500.0,0.00054794,120]
[321437190,1712190669823,-514.62328702,0.00054794,120]
[321437191,1712190669833,-518.74892617,0.00054794,120]
[321437192,1712190669846,-838.66,0.00054794,120]
[321437193,1712190669856,-571.68899611,0.00054794,120]
[321437194,1712190669865,-504.58343045,0.00054794,120]
[321437195,1712190669875,-500.0,0.00054794,120]
[321437196,1712190669885,-558.23,0.00054794,120]
[321437197,1712190669895,-500.0,0.00054794,120]
[321437198,1712190669905,-500.0,0.00054794,120]
[321437199,1712190669915,-500.0,0.00054794,120]
[321437200,1712190669924,-500.0,0.00054794,120]
[321437201,1712190669934,-500.0,0.00054794,120]
[321437202,1712190669943,-506.5283126,0.00054794,120]
[321437203,1712190669952,-500.0,0.00054794,120]
[321437204,1712190669961,-500.0,0.00054794,120]
[321437205,1712190669971,-280.30826805,0.00054794,120]
[321437206,1712190669981,-507.301996,0.00054794,120]
[321437207,1712190669990,-500.0,0.00054794,120]
[321437208,1712190669999,-500.0,0.00054794,120]
[321437209,1712190670009,-500.0,0.00054794,120]
[321437210,1712190670019,-504.33119942,0.00054794,120]
[321437211,1712190670028,-500.0,0.00054794,120]
[321437212,1712190670038,-500.0,0.00054794,120]
[321437213,1712190670047,-580.93,0.00054794,120]
[321437214,1712190670058,-500.0,0.00054794,120]
[321437215,1712190670255,-2171.28,0.00054794,120]
[321437216,1712190670265,-500.0,0.00054794,120]
[321437217,1712190670274,-502.26488189,0.00054794,120]
[321437218,1712190670283,-500.0,0.00054794,120]
[321437219,1712190670292,-500.0,0.00054794,120]
[321437220,1712190670301,-500.0,0.00054794,120]
[321437221,1712190670310,-507.7971728,0.00054794,120]
[321437222,1712190670318,-500.0,0.00054794,120]
[321437223,1712190670327,-513.90803009,0.00054794,120]
[321437224,1712190670336,-500.0,0.00054794,120]
[321437225,1712190670346,-508.08381425,0.00054794,120]
[321437226,1712190670355,-500.0,0.00054794,120]
[321437227,1712190670364,-500.0,0.00054794,120]
[321437228,1712190670373,-500.0,0.00054794,120]
[321437229,1712190670382,-500.0,0.00054794,120]
[321437230,1712190670392,-500.0,0.00054794,120]
[321437231,1712190670402,-500.0,0.00054794,120]
[321437232,1712190670411,-511.4,0.00054794,120]
[321437233,1712190670421,-507.1740089,0.00054794,120]
[321437234,1712190670430,-500.0,0.00054794,120]
[321437235,1712190670439,-500.0,0.00054794,120]
[321437236,1712190670448,-521.25478602,0.00054794,120]
[321437237,1712190670457,-500.0,0.00054794,120]
[321437238,1712190670466,-500.0,0.00054794,120]
[321437239,1712190670475,-500.0,0.00054794,120]
[321437240,1712190670484,-500.0,0.00054794,120]
[321437241,1712190670493,-503.78792511,0.00054794,120]
[321437242,1712190670502,-519.57031299,0.00054794,120]
[321437243,1712190670511,-511.28656155,0.00054794,120]
[321437244,1712190670521,-533.61281662,0.00054794,120]
[321437245,1712190670530,-508.75863162,0.00054794,120]
[321437246,1712190670539,-504.73249031,0.00054794,120]
[321437247,1712190670549,-500.0,0.00054794,120]
[321437248,1712190670559,-505.69730223,0.00054794,120]
[321437249,1712190670568,-516.03922594,0.00054794,120]
[321437250,1712190670577,-490.53927365,0.00054794,120]
[321437251,1712190670586,-500.0,0.00054794,120]
[321437252,1712190670597,-500.0,0.00054794,120]
[321437253,1712190670606,-500.0,0.00054794,120]
[321437254,1712190670615,-647.29,0.00054794,120]
[321437255,1712190670624,-500.0,0.00054794,120]
[321437256,1712190670633,-500.0,0.00054794,120]
[321437257,1712190670642,-253.43095902,0.00054794,2]
[321437258,1712190670651,-500.0,0.00054794,120]
[321437259,1712190670660,-500.0,0.00054794,120]
[321437260,1712190670669,-500.0,0.00054794,120]
[321437261,1712190670678,-500.0,0.00054794,120]
[321437262,1712190670688,-503.07191444,0.00054794,120]
[321437263,1712190670697,-500.0,0.00054794,120]
[321437264,1712190670707,-624.35,0.00054794,120]
[321437265,1712190670716,-500.0,0.00054794,120]
[321437266,1712190670726,-505.01692492,0.00054794,120]
[321437267,1712190670735,-500.0,0.00054794,120]
[321437268,1712190670744,-500.0,0.00054794,120]
[321437269,1712190670754,-500.0,0.00054794,120]
[321437270,1712190670763,-500.0,0.00054794,120]
[321437271,1712190670772,-510.27,0.00054794,120]
[321437272,1712190670782,-500.0,0.00054794,120]
[321437273,1712190670792,-500.0,0.00054794,120]
[321437274,1712190670801,-500.0,0.00054794,120]
[321437275,1712190670810,-500.0,0.00054794,120]
[321437276,1712190670818,-504.19529844,0.00054794,120]
[321437277,1712190670828,-510.27749448,0.00054794,120]
[321437278,1712190670837,-500.0,0.00054794,120]
[321437279,1712190670850,-593.44,0.00054794,120]
[321437280,1712190670860,-500.0,0.00054794,120]
[321437281,1712190670869,-500.0,0.00054794,120]
[321437282,1712190670878,-561.42,0.00054794,120]
[321437283,1712190670887,-500.0,0.00054794,120]
[321437284,1712190670896,-500.0,0.00054794,120]
[321437285,1712190670906,-520.73032224,0.00054794,120]
[321437286,1712190670916,-500.0,0.00054794,120]
[321437287,1712190670925,-517.51838716,0.00054794,120]
[321437288,1712190670935,-500.0,0.00054794,120]
[321437289,1712190670945,-500.0,0.00054794,120]
[321437290,1712190670955,-500.0,0.00054794,120]
[321437291,1712190670964,-444.36658697,0.00054794,120]
[321437292,1712190670974,-564.29,0.00054794,120]
[321437293,1712190670983,-500.0,0.00054794,120]
[321437294,1712190670991,-500.0,0.00054794,120]
[321437295,1712190671001,-500.0,0.00054794,120]
[321437296,1712190671010,-510.01,0.00054794,120]
[321437297,1712190671019,-500.0,0.00054794,120]
[321437298,1712190671029,-516.89928555,0.00054794,120]
[321437299,1712190671038,-514.34774889,0.00054794,15]
[321437300,1712190671047,-500.0,0.00054794,120]
[321437301,1712190671056,-500.0,0.00054794,120]
[321437302,1712190671066,-500.0,0.00054794,120]
[321437303,1712190671078,-500.0,0.00054794,120]
[321437304,1712190671087,-500.0,0.00054794,120]
[321437305,1712190671100,-500.0,0.00054794,120]
[321437306,1712190671109,-500.0,0.00054794,120]
[321437307,1712190671119,-535.89,0.00054794,120]
[321437308,1712190671129,-500.0,0.00054794,120]
[321437309,1712190671137,-500.0,0.00054794,120]
[321437310,1712190671147,-651.69,0.00054794,120]
[321437311,1712190671157,-500.0,0.00054794,120]
[321437312,1712190671166,-542.56215447,0.00054794,120]
[321437313,1712190671176,-500.0,0.00054794,120]
[321437314,1712190671185,-500.0,0.00054794,120]
[321437315,1712190671195,-522.28348477,0.00054794,120]
[321437316,1712190671204,-351.16695928,0.00054794,120]
[321437317,1712190671213,-500.0,0.00054794,120]
[321437318,1712190671222,-500.0,0.00054794,120]
[321437319,1712190671231,-500.0,0.00054794,120]
[321437320,1712190671242,-500.0,0.00054794,120]
[321437321,1712190671251,-500.0,0.00054794,120]
[321437322,1712190671261,-626.94,0.00054794,120]
[321437323,1712190671270,-500.0,0.00054794,120]
[321437324,1712190671279,-510.06673725,0.00054794,120]
[321437325,1712190671289,-500.0,0.00054794,120]
[321437326,1712190671299,-500.0,0.00054794,120]
[321437327,1712190671308,-500.0,0.00054794,120]
[321437328,1712190671318,-531.01,0.00054794,120]
[321437329,1712190671328,-500.0,0.00054794,120]
[321437330,1712190671336,-500.0,0.00054794,120]
[321437331,1712190671350,-500.0,0.00054794,120]
[321437332,1712190671359,-500.0,0.00054794,120]
[321437333,1712190671368,-500.0,0.00054794,120]
[321437334,1712190671377,-507.90938434,0.00054794,120]
[321437335,1712190671385,-150.0,0.00054794,120]
[321437336,1712190671394,-508.13503615,0.00054794,120]
[321437337,1712190671403,-500.0,0.00054794,120]
[321437338,1712190671412,-524.39554877,0.00054794,120]
[321437339,1712190671421,-500.0,0.00054794,120]
[321437340,1712190671430,-500.0,0.00054794,120]
[321437341,1712190671439,-500.0,0.00054794,120]
[321437342,1712190671448,-509.1,0.00054794,120]
[321437343,1712190671457,-500.0,0.00054794,120]
[321437344,1712190671466,-500.0,0.00054794,120]
[321437345,1712190671475,-518.90113583,0.00054794,120]
[321437346,1712190671484,-500.0,0.00054794,120]
[321437347,1712190671493,-500.0,0.00054794,120]
[321437348,1712190671502,-500.0,0.00054794,120]
[321437349,1712190671512,-500.0,0.00054794,120]
[321437350,1712190671521,-500.0,0.00054794,120]
[321437351,1712190671531,-724.1,0.00054794,120]
[321437352,1712190671540,-500.0,0.00054794,120]
[321437353,1712190671549,-234.53035963,0.00054794,120]
[321437354,1712190671558,-500.0,0.00054794,120]
[321437355,1712190671567,-500.0,0.00054794,120]
[321437356,1712190671576,-570.91680593,0.00054794,120]
[321437357,1712190671585,-500.0,0.00054794,120]
[321437358,1712190671597,-500.0,0.00054794,120]
[321437359,1712190671607,-500.0,0.00054794,120]
[321437360,1712190671616,-536.99,0.00054794,120]
[321437361,1712190671626,-500.0,0.00054794,120]
[321437362,1712190671635,-518.35280255,0.00054794,120]
[321437363,1712190671645,-500.0,0.00054794,120]
[321437364,1712190671655,-505.56110231,0.00054794,120]
[321437365,1712190671665,-500.0,0.00054794,120]
[321437366,1712190671674,-500.0,0.00054794,120]
[321437367,1712190671685,-439.85070222,0.00054794,120]
[321437368,1712190671695,-500.0,0.00054794,120]
[321437369,1712190671704,-500.0,0.00054794,120]
[321437370,1712190671714,-500.0,0.00054794,120]
[321437371,1712190671723,-509.22890575,0.00054794,7]
[321437372,1712190671733,-500.0,0.00054794,120]
[321437373,1712190671742,-500.0,0.00054794,120]
[321437374,1712190671751,-500.0,0.00054794,120]
[321437375,1712190671761,-500.0,0.00054794,120]
[321437376,1712190671770,-500.0,0.00054794,120]
[321437377,1712190671779,-505.95877875,0.00054794,120]
[321437378,1712190671788,-163.39261149,0.00054794,120]
[321437379,1712190671798,-507.86137446,0.00054794,120]
[321437380,1712190671807,-500.0,0.00054794,120]
[321437381,1712190671816,-500.0,0.00054794,120]
[321437382,1712190671825,-500.0,0.00054794,120]
[321437383,1712190671834,-635.83,0.00054794,120]
[321437384,1712190671843,-1002.06424694,0.00054794,2]
[321437385,1712190671853,-500.0,0.00054794,120]
[321437386,1712190671862,-500.0,0.00054794,120]
[321437387,1712190671871,-500.0,0.00054794,120]
[321437388,1712190671881,-500.0,0.00054794,120]
[321437389,1712190671890,-701.21,0.00054794,120]
[321437390,1712190671899,-500.0,0.00054794,120]
[321437391,1712190671908,-510.40366289,0.00054794,120]
[321437392,1712190671917,-500.0,0.00054794,120]
[321437393,1712190671929,-500.0,0.00054794,120]
[321437394,1712190671938,-500.0,0.00054794,120]
[321437395,1712190671947,-500.0,0.00054794,120]
[321437396,1712190671956,-500.0,0.00054794,120]
[321437397,1712190671965,-928.84,0.00054794,120]
[321437398,1712190671974,-500.0,0.00054794,120]
[321437399,1712190671983,-500.0,0.00054794,120]
[321437400,1712190671991,-500.0,0.00054794,120]
[321437401,1712190672000,-500.0,0.00054794,120]
[321437402,1712190672009,-500.0,0.00054794,120]
[321437403,1712190672019,-500.0,0.00054794,120]
[321437404,1712190672028,-500.0,0.00054794,120]
[321437405,1712190672037,-500.0,0.00054794,120]
[321437406,1712190672046,-500.0,0.00054794,120]
[321437407,1712190672055,-500.0,0.00054794,120]
[321437408,1712190672066,-500.0,0.00054794,120]
[321437409,1712190672077,-512.93732202,0.00054794,120]
[321437410,1712190672086,-500.0,0.00054794,120]
[321437411,1712190672096,-500.0,0.00054794,120]
[321437412,1712190672105,-500.0,0.00054794,120]
[321437413,1712190672114,-500.0,0.00054794,120]
[321437414,1712190672123,-500.0,0.00054794,120]
[321437415,1712190672133,-500.0,0.00054794,120]
[321437416,1712190672142,-1101.57,0.00054794,120]
[321437417,1712190672151,-505.50190729,0.00054794,120]
[321437418,1712190672161,-1277.23,0.00054794,120]
[321437419,1712190672170,-500.0,0.00054794,120]
[321437420,1712190672179,-303.39878205,0.00054794,120]
[321437421,1712190672189,-559.74,0.00054794,120]
[321437422,1712190672199,-533.89948382,0.00054794,120]
[321437423,1712190672209,-500.0,0.00054794,120]
[321437424,1712190672219,-500.0,0.00054794,120]
[321437425,1712190672229,-1000.0,0.00054794,120]
[321437426,1712190672240,-500.0,0.00054794,120]
[321437427,1712190672250,-500.0,0.00054794,120]
[321437428,1712190672260,-500.0,0.00054794,120]
[321437429,1712190672270,-516.18097757,0.00054794,120]
[321437430,1712190672280,-510.12050361,0.00054794,120]
[321437431,1712190672290,-1119.45,0.00054794,120]
[321437432,1712190672300,-500.0,0.00054794,120]
[321437433,1712190672310,-500.0,0.00054794,120]
[321437434,1712190672320,-500.0,0.00054794,120]
[321437435,1712190672330,-500.0,0.00054794,120]
[321437436,1712190672340,-1429.76,0.00054794,120]
[321437437,1712190672350,-153.30865476,0.00054794,120]
[321437438,1712190672361,-500.0,0.00054794,120]
[321437439,1712190672371,-791.83,0.00054794,120]
[321437440,1712190672380,-500.0,0.00054794,120]
[321437441,1712190672390,-503.01568906,0.00054794,120]
[321437442,1712190672400,-500.0,0.00054794,120]
[321437443,1712190672410,-688.85,0.00054794,120]
[321437444,1712190672419,-500.0,0.00054794,120]
[321437445,1712190672429,-500.0,0.00054794,120]
[321437446,1712190672439,-666.67,0.00054794,120]
[321437447,1712190672448,-500.0,0.00054794,120]
[321437448,1712190672458,-618.43,0.00054794,120]
[321437449,1712190672467,-500.0,0.00054794,120]
[321437450,1712190672477,-504.97131546,0.00054794,120]
[321437451,1712190672486,-514.2,0.00054794,120]
[321437452,1712190672495,-510.36156753,0.00054794,120]
[321437453,1712190672505,-500.0,0.00054794,120]
[321437454,1712190672515,-500.0,0.00054794,120]
[321437455,1712190672525,-1099.54,0.00054794,120]
[321437456,1712190672535,-500.0,0.00054794,120]
[321437457,1712190672544,-500.0,0.00054794,120]
[321437458,1712190672553,-500.0,0.00054794,120]
[321437459,1712190672563,-500.0,0.00054794,120]
[321437460,1712190672572,-500.0,0.00054794,120]
[321437461,1712190672581,-500.0,0.00054794,120]
[321437462,1712190672591,-500.0,0.00054794,120]
[321437463,1712190672603,-496.03680517,0.00054794,120]
[321437464,1712190672612,-500.0,0.00054794,120]
[321437465,1712190672622,-512.16,0.00054794,120]
[321437466,1712190672631,-734.12,0.00054794,120]
[321437467,1712190672641,-500.0,0.00054794,120]
[321437468,1712190672651,-500.0,0.00054794,120]
[321437469,1712190672661,-1000.0,0.00054794,60]
[321437470,1712190672670,-500.0,0.00054794,120]
[321437471,1712190672680,-952.04,0.00054794,120]
[321437472,1712190672691,-1210.63,0.00054794,120]
[321437473,1712190672700,-500.0,0.00054794,120]
[321437474,1712190672710,-500.0,0.00054794,120]
[321437475,1712190672720,-500.0,0.00054794,120]
[321437476,1712190672731,-1171.81,0.00054794,120]
[321437477,1712190672741,-500.0,0.00054794,120]
[321437478,1712190672751,-820.07148275,0.00054794,3]
[321437479,1712190672761,-1211.72,0.00054794,120]
[321437480,1712190672771,-500.0,0.00054794,120]
[321437481,1712190672781,-502.24073019,0.00054794,120]
[321437482,1712190672791,-500.0,0.00054794,120]
[321437483,1712190672800,-501.6,0.00054794,120]
[321437484,1712190672810,-500.0,0.00054794,120]
[321437485,1712190672819,-500.0,0.00054794,120]
[321437486,1712190672829,-500.0,0.00054794,120]
[321437487,1712190672840,-500.0,0.00054794,120]
[321437488,1712190672852,-631.33,0.00054794,120]
[321437489,1712190672862,-543.81,0.00054794,120]
[321437490,1712190672872,-472.62094472,0.00054794,120]
[321437491,1712190672883,-500.0,0.00054794,120]
[321437492,1712190672893,-533.2,0.00054794,120]
[321437493,1712190672904,-501.31381906,0.00054794,120]
[321437494,1712190672914,-506.17338091,0.00054794,120]
[321437495,1712190672924,-500.0,0.00054794,120]
[321437496,1712190672935,-1209.28,0.00054794,120]
[321437497,1712190672946,-500.0,0.00054794,120]
[321437498,1712190672958,-1576.5,0.00054794,120]
[321437499,1712190672967,-500.0,0.00054794,120]
[321437500,1712190672977,-500.0,0.00054794,120]
[321437501,1712190672987,-500.0,0.00054794,120]
[321437502,1712190672997,-579.99,0.00054794,120]
[321437503,1712190673007,-500.0,0.00054794,120]
[321437504,1712190673017,-500.0,0.00054794,120]
[321437505,1712190673027,-875.72,0.00054794,2]
[321437506,1712190673037,-960.97,0.00054794,120]
[321437507,1712190673045,-890.32,0.00054794,120]
[321437508,1712190673054,-504.30017467,0.00054794,120]
[321437509,1712190673064,-935.91,0.00054794,120]
[321437510,1712190673074,-570.44995802,0.00054794,120]
[321437511,1712190673085,-500.0,0.00054794,120]
[321437512,1712190673094,-500.0,0.00054794,120]
[321437513,1712190673106,-512.57048255,0.00054794,120]
[321437514,1712190673116,-504.49881216,0.00054794,120]
[321437515,1712190673125,-513.82404215,0.00054794,120]
[321437516,1712190673134,-550.32,0.00054794,120]
[321437517,1712190673144,-906.84,0.00054794,120]
[321437518,1712190673153,-1009.55,0.00054794,120]
[321437519,1712190673163,-500.0,0.00054794,2]
[321437520,1712190673171,-1038.27,0.00054794,120]
[321437521,1712190673181,-500.0,0.00054794,120]
[321437522,1712190673190,-544.90672283,0.00054794,120]
[321437523,1712190673199,-1184.33,0.00054794,120]
[321437524,1712190673209,-500.0,0.00054794,120]
[321437525,1712190673218,-2498.55,0.00054794,120]
[321437526,1712190673228,-506.86763661,0.00054794,120]
[321437527,1712190673237,-506.8915329,0.00054794,120]
[321437528,1712190673248,-500.0,0.00054794,120]
[321437529,1712190673257,-500.0,0.00054794,120]
[321437530,1712190673266,-500.0,0.00054794,120]
[321437531,1712190673275,-504.57775263,0.00054794,120]
[321437532,1712190673284,-3000.0,0.00054794,120]
[321437533,1712190673294,-500.0,0.00054794,120]
[321437534,1712190673302,-500.0,0.00054794,120]
[321437535,1712190673312,-1115.69,0.00054794,120]
[321437536,1712190673321,-500.0,0.00054794,120]
[321437537,1712190673330,-314.24049412,0.00054794,120]
[321437538,1712190673339,-977.94,0.00054794,120]
[321437539,1712190673351,-982.66,0.00054794,120]
[321437540,1712190673360,-500.0,0.00054794,120]
[321437541,1712190673369,-500.0,0.00054794,120]
[321437542,1712190673379,-500.0,0.00054794,120]
[321437543,1712190673388,-500.0,0.00054794,120]
[321437544,1712190673398,-500.0,0.00054794,120]
[321437545,1712190673407,-1277.94,0.00054794,120]
[321437546,1712190673417,-693.26,0.00054794,120]
[321437547,1712190673427,-500.0,0.00054794,120]
[321437548,1712190673436,-428.00812171,0.00054794,120]
[321437549,1712190673633,-500.0,0.00054794,120]
[321437550,1712190673643,-500.0,0.00054794,120]
[321437551,1712190673652,-500.0,0.00054794,120]
[321437552,1712190673662,-959.52,0.00054794,120]
[321437553,1712190673671,-500.0,0.00054794,120]
[321437554,1712190673680,-500.0,0.00054794,120]
[321437555,1712190673689,-240.50878257,0.00054794,120]
[321437556,1712190673699,-965.12,0.00054794,120]
[321437557,1712190673708,-1115.54,0.00054794,120]
[321437558,1712190673717,-500.0,0.00054794,120]
[321437559,1712190673726,-500.0,0.00054794,120]
[321437560,1712190673736,-500.0,0.00054794,120]
[321437561,1712190673745,-500.0,0.00054794,120]
[321437562,1712190673754,-500.0,0.00054794,120]